fUST/lending_fUST_20250105
["ID","MTS","AMOUNT","RATE_DAILY","PERIOD"]
[347651969,1736023835312,-151.0,0.000177,2]
[347651970,1736023835321,-151.0,0.000177,2]
[347651971,1736023835331,-151.0,0.000177,2]
[347651972,1736023835340,-151.0,0.000177,2]
[347651973,1736023835351,-151.0,0.000177,2]
[347651974,1736023835361,-151.0,0.000177,2]
[347651975,1736023835371,-151.0,0.000177,2]
[347651976,1736023835381,-237.446694,0.000177,2]
[347651977,1736023835390,-151.0,0.000177,2]
[347651978,1736023835399,-151.0,0.000177,2]
[347651979,1736023835409,-151.0,0.000177,2]
[347651980,1736023835418,-151.0,0.000177,2]
[347651981,1736023835427,-270.021525,0.000177,2]
[347651982,1736023835437,-151.0,0.000177,2]
[347651983,1736023835446,-151.0,0.000177,2]
[347651984,1736023835455,-151.0,0.000177,2]
[347651985,1736023835464,-151.0,0.000177,2]
[347651986,1736023835474,-151.0,0.000177,2]
[347651987,1736023835483,-151.0,0.000177,2]
[347651988,1736023835492,-151.0,0.000177,2]
[347651989,1736023835502,-151.0,0.000177,2]
[347651990,1736023835511,-151.0,0.000177,2]
[347651991,1736023835522,-151.0,0.000177,2]
[347651992,1736023835531,-151.0,0.000177,2]
[347651993,1736023835540,-151.0,0.000177,2]
[347651994,1736023835550,-151.0,0.000177,2]
[347651995,1736023835559,-165.136384,0.000177,2]
[347651996,1736023835568,-423.326736,0.000177,2]
[347651997,1736023835578,-423.326736,0.000177,2]
[347651998,1736023835587,-423.326736,0.000177,2]
[347651999,1736023835597,-151.0,0.000177,2]
[347652000,1736023835606,-151.0,0.000177,2]
[347652001,1736023835615,-423.326736,0.000177,2]
[347652002,1736023835626,-423.326736,0.000177,2]
[347652003,1736023835636,-423.326736,0.000177,2]
[347652004,1736023835646,-423.326736,0.000177,2]
[347652005,1736023835656,-170.129328,0.000177,2]
[347652006,1736023835665,-170.129328,0.000177,2]
[347652007,1736023835674,-170.129328,0.000177,2]
[347652008,1736023835684,-170.129328,0.000177,2]
[347652009,1736023835693,-423.326736,0.000177,2]
[347652010,1736023835702,-170.129328,0.000177,2]
[347652011,1736023835712,-423.326736,0.000177,2]
[347652012,1736023835723,-170.129328,0.000177,2]
[347652013,1736023835733,-423.326736,0.000177,2]
[347652014,1736023835742,-170.129328,0.000177,2]
[347652015,1736023835751,-423.326736,0.000177,2]
[347652016,1736023835761,-423.326736,0.000177,2]
[347652017,1736023835772,-423.326736,0.000177,2]
[347652018,1736023835781,-423.32673,0.000177,2]
[347652019,1736023835791,-170.129328,0.000177,2]
[347652020,1736023835800,-170.129328,0.000177,2]
[347652021,1736023835809,-170.129328,0.000177,2]
[347652022,1736023835819,-170.129328,0.000177,2]
[347652023,1736023835828,-170.129328,0.000177,2]
[347652024,1736023835838,-170.129328,0.000177,2]
[347652025,1736023835847,-170.129324,0.000177,2]
[347652026,1736023835857,-151.0,0.00017727,2]
[347652027,1736023835866,-151.0,0.00017727,2]
[347652028,1736023835875,-151.0,0.00017727,2]
[347652029,1736023835885,-197.58964,0.00017727,2]
[347652030,1736023835894,-197.58964,0.00017727,2]
[347652031,1736023835904,-197.58964,0.00017727,2]
[347652032,1736023835914,-197.58964,0.00017727,2]
[347652033,1736023835923,-184.163289,0.00017728,2]
[347652034,1736023835933,-184.163289,0.00017728,2]
[347652035,1736023835943,-151.0,0.00017728,2]
[347652036,1736023835953,-151.0,0.00017728,2]
[347652037,1736023835963,-171.647911,0.00017728,2]
[347652038,1736023835973,-171.647911,0.00017728,2]
[347652039,1736023835982,-600.084975,0.00017728,2]
[347652040,1736023835992,-600.084975,0.00017728,2]
[347652041,1736023836002,-151.0,0.00017728,2]
[347652042,1736023836012,-194.962708,0.00017728,2]
[347652043,1736023836021,-194.962717,0.00017728,2]
[347652044,1736023836031,-197.58964,0.00017728,2]
[347652045,1736023836041,-197.58964,0.00017728,2]
[347652046,1736023836051,-500.0,0.00017733,2]
[347652047,1736023836061,-502.41149017,0.00017733,2]
[347652048,1736023836071,-500.0,0.00017733,2]
[347652049,1736023836081,-500.0,0.00017733,2]
[347652050,1736023836094,-363.01335817,0.00017733,2]
[347652051,1736023836103,-500.0,0.00017733,2]
[347652052,1736023836113,-500.0,0.00017733,2]
[347652053,1736023836122,-500.0,0.00017733,2]
[347652054,1736023836133,-500.0,0.00017733,2]
[347652055,1736023836292,-500.3380133,0.00017733,2]
[347652056,1736023836302,-500.0,0.00017767,2]
[347652057,1736023836312,-500.0,0.00017767,2]
[347652058,1736023836322,-500.0,0.0001778,2]
[347652059,1736023836331,-500.0,0.0001778,2]
[347652060,1736023836340,-500.0,0.0001778,2]
[347652061,1736023836349,-151.0,0.00017799,2]
[347652062,1736023836359,-197.58964,0.00017799,2]
[347652063,1736023836369,-197.58964,0.00017799,2]
[347652064,1736023836378,-151.0,0.000178,2]
[347652065,1736023836388,-151.0,0.000178,2]
[347652066,1736023836398,-171.200819,0.000178,2]
[347652067,1736023836407,-151.0,0.000178,2]
[347652068,1736023836418,-151.0,0.000178,2]
[347652069,1736023836429,-151.0,0.000178,2]
[347652070,1736023836439,-151.0,0.000178,2]
[347652071,1736023836449,-151.0,0.000178,2]
[347652072,1736023836459,-151.0,0.000178,2]
[347652073,1736023836468,-151.0,0.000178,2]
[347652074,1736023836479,-151.0,0.000178,2]
[347652075,1736023836489,-151.0,0.000178,2]
[347652076,1736023836500,-151.0,0.000178,2]
[347652077,1736023836510,-151.0,0.000178,2]
[347652078,1736023836520,-151.0,0.000178,2]
[347652079,1736023836529,-184.163289,0.000178,2]
[347652080,1736023836539,-184.163289,0.000178,2]
[347652081,1736023836548,-184.163289,0.000178,2]
[347652082,1736023836558,-184.163289,0.000178,2]
[347652083,1736023836568,-184.163289,0.000178,2]
[347652084,1736023836577,-184.163289,0.000178,2]
[347652085,1736023836586,-184.163289,0.000178,2]
[347652086,1736023836596,-184.163289,0.000178,2]
[347652087,1736023836606,-151.0,0.000178,2]
[347652088,1736023836615,-151.0,0.000178,2]
[347652089,1736023836625,-151.0,0.000178,2]
[347652090,1736023836635,-151.0,0.000178,2]
[347652091,1736023836645,-151.0,0.000178,2]
[347652092,1736023836655,-151.0,0.000178,2]
[347652093,1736023836664,-151.0,0.000178,2]
[347652094,1736023836674,-500.0,0.000178,2]
[347652095,1736023836683,-151.0,0.000178,2]
[347652096,1736023836693,-151.0,0.000178,2]
[347652097,1736023836703,-151.0,0.000178,2]
[347652098,1736023836713,-151.0,0.000178,2]
[347652099,1736023836722,-502.48661678,0.000178,2]
[347652100,1736023836733,-171.647911,0.000178,2]
[347652101,1736023836743,-171.647911,0.000178,2]
[347652102,1736023836753,-171.647911,0.000178,2]
[347652103,1736023836763,-171.647911,0.000178,2]
[347652104,1736023836774,-171.647911,0.000178,2]
[347652105,1736023836783,-171.647911,0.000178,2]
[347652106,1736023836793,-171.647911,0.000178,2]
[347652107,1736023836802,-171.647911,0.000178,2]
[347652108,1736023836811,-600.084975,0.000178,2]
[347652109,1736023836821,-600.084975,0.000178,2]
[347652110,1736023836831,-600.084975,0.000178,2]
[347652111,1736023836840,-600.084975,0.000178,2]
[347652112,1736023836850,-600.084975,0.000178,2]
[347652113,1736023836860,-600.084975,0.000178,2]
[347652114,1736023836869,-600.084975,0.000178,2]
[347652115,1736023836879,-600.084975,0.000178,2]
[347652116,1736023836888,-151.0,0.000178,2]
[347652117,1736023836897,-197.58964,0.000178,2]
[347652118,1736023836907,-197.589638,0.000178,2]
[347652119,1736023836916,-151.0,0.00017815,2]
[347652120,1736023836926,-151.0,0.00017815,2]
[347652121,1736023836936,-151.0,0.00017831,2]
[347652122,1736023836946,-217.45116,0.00017831,2]
[347652123,1736023836955,-151.495182,0.00017831,2]
[347652124,1736023836965,-184.163289,0.00017831,2]
[347652125,1736023836974,-184.16329,0.00017831,2]
[347652126,1736023836984,-151.0,0.00017831,2]
[347652127,1736023836993,-290.117404,0.00017831,2]
[347652128,1736023837003,-171.647911,0.00017831,2]
[347652129,1736023837012,-171.64790441,0.00017831,2]
[347652130,1736023837023,-600.084975,0.00017831,2]
[347652131,1736023837032,-600.084975,0.00017831,2]
[347652132,1736023837042,-5619.92589787,0.00017831,2]
[347652133,1736023837051,-151.0,0.0001788,2]
[347652134,1736023837061,-258.611432,0.0001788,2]
[347652135,1736023837070,-151.0,0.0001788,2]
[347652136,1736023837080,-151.0,0.00017882,2]
[347652137,1736023837093,-151.0,0.00017883,2]
[347652138,1736023837103,-151.0,0.00017883,2]
[347652139,1736023837112,-151.0,0.00017883,2]
[347652140,1736023837122,-151.0,0.00017883,2]
[347652141,1736023837132,-151.0,0.00017898,2]
[347652142,1736023837142,-151.0,0.00017898,2]
[347652143,1736023837151,-502.95723606,0.00017899,2]
[347652144,1736023837163,-151.0,0.00017923,2]
[347652145,1736023837173,-151.0,0.00017923,2]
[347652146,1736023837183,-587.0,0.00017964,2]
[347652147,1736023837192,-151.0,0.00017966,2]
[347652148,1736023837201,-151.0,0.00017966,2]
[347652149,1736023837211,-154.833551,0.00017966,2]
[347652150,1736023837222,-233.09387616,0.0001797,2]
[347652151,1736023837231,-1984.98619224,0.00018,2]
[347652152,1736023837241,-151.0,0.00018072,2]
[347652153,1736023837251,-151.0,0.00018072,2]
[347652154,1736023837261,-151.0,0.00018072,2]
[347652155,1736023837271,-151.0,0.00018072,2]
[347652156,1736023837281,-5619.92589787,0.00018072,2]
[347652157,1736023837291,-500.0,0.00018178,7]
[347652158,1736023837301,-500.0,0.00018178,7]
[347652159,1736023837311,-500.0,0.00018178,7]
[347652160,1736023837320,-500.0,0.00018178,7]
[347652161,1736023837330,-500.0,0.00018178,7]
[347652162,1736023837341,-500.0,0.00018178,7]
[347652163,1736023837351,-500.0,0.00018178,7]
[347652164,1736023837361,-500.0,0.00018178,7]
[347652165,1736023837371,-500.0,0.00018178,7]
[347652166,1736023837381,-586.93,0.00018178,7]
[347652167,1736023837393,-500.0,0.00018178,7]
[347652168,1736023837402,-1000.0,0.00018281,2]
[347652169,1736023837412,-1001.96759086,0.00018281,2]
[347652170,1736023837422,-1000.0,0.00018281,2]
[347652171,1736023837431,-500.0,0.00018281,2]
[347652172,1736023837441,-501.48914645,0.00018281,2]
[347652173,1736023837451,-500.56620949,0.00018281,2]
[347652174,1736023837460,-5619.92589787,0.00018314,2]
[347652175,1736023837470,-166.099188,0.00018314,2]
[347652176,1736023837479,-151.0,0.00018314,2]
[347652177,1736023837489,-1080.13444843,0.00018315,2]
[347652178,1736023837499,-1000.0,0.00018328,2]
[347652179,1736023837509,-503.6687696,0.00018328,2]
[347652180,1736023837518,-233.09387616,0.00018339,2]
[347652181,1736023837528,-667.6066688,0.00018348,2]
[347652182,1736023837537,-151.0,0.00018389,2]
[347652183,1736023837547,-231.480304,0.00018389,2]
[347652184,1736023837556,-260.83754779,0.000185,2]
[347652186,1736023837566,-151.0,0.00018515,2]
[347652187,1736023837578,-500.0,0.00018521,7]
[347652188,1736023837587,-151.0,0.00018555,2]
[347652189,1736023837596,-5619.92589787,0.00018555,2]
[347652190,1736023837606,-575.78737246,0.00018599,2]
[347652191,1736023837615,-153.79,0.000186,2]
[347652193,1736023837625,-233.09387616,0.00018709,2]
[347652195,1736023837635,-3000.0,0.00018777,2]
[347652196,1736023837645,-432.286,0.00018784,2]
[347652197,1736023837655,-151.0,0.00018796,2]
[347652198,1736023837664,-151.0,0.00018796,2]
[347652199,1736023837674,-5619.92589787,0.00018797,2]
[347652200,1736023837684,-151.0,0.000188,2]
[347652201,1736023837693,-153.0,0.00018822,2]
[347652202,1736023837703,-411.1399732,0.00018822,2]
[347652203,1736023837714,-306.9108852,0.00018822,2]
[347652204,1736023837724,-153.0,0.00018822,2]
[347652205,1736023837733,-153.0,0.00018822,2]
[347652206,1736023837743,-153.0,0.00018822,2]
[347652207,1736023837753,-153.0,0.00018822,2]
[347652208,1736023837762,-151.0,0.00018877,2]
[347652209,1736023837772,-166.93,0.00018878,2]
[347652210,1736023837781,-151.0,0.00018904,2]
[347652211,1736023837791,-5000.0,0.00018904,7]
[347652212,1736023837801,-1298.49017644,0.00018989,3]
[347652213,1736023837811,-1707.67968373,0.00019,4]
[347652214,1736023837821,-1000.0,0.00019,19]
[347652215,1736023837830,-151.0,0.00019,2]
[347652217,1736023837839,-151.0,0.00019,2]
[347652218,1736023837849,-464.0,0.00019,8]
[347652219,1736023837859,-302.90913937,0.00019,2]
[347652220,1736023837868,-5619.92589787,0.00019038,2]
[347652221,1736023837878,-151.0,0.00019038,2]
[347652222,1736023837888,-233.09387616,0.00019078,2]
[347652223,1736023837897,-1281.16,0.000191,2]
[347652224,1736023837907,-151.0,0.000191,2]
[347652225,1736023837917,-151.0,0.000191,2]
[347652226,1736023837926,-151.0,0.00019157,2]
[347652227,1736023837935,-65359.45450645,0.0001917,2]
[347652228,1736023837945,-4011.03387915,0.0001917,2]
[347652229,1736023837955,-4999.99999902,0.0001917,2]
[347652230,1736023837965,-500.70306352,0.00019173,2]
[347652231,1736023837975,-500.0,0.00019173,2]
[347652232,1736023837985,-500.50563966,0.00019173,2]
[347652233,1736023837995,-200.0,0.00019173,2]
[347652234,1736023838004,-152.0,0.00019173,2]
[347652235,1736023838014,-152.13355655,0.00019173,2]
[347652236,1736023838025,-500.0,0.00019173,2]
[347652237,1736023838036,-484.58326725,0.00019173,2]
[347652238,1736023838046,-326.76395606,0.00019173,2]
[347652239,1736023838056,-500.0,0.00019173,2]
[347652240,1736023838065,-500.0,0.00019173,2]
[347652241,1736023838074,-500.0,0.00019173,2]
[347652242,1736023838085,-500.43794056,0.00019173,2]
[347652243,1736023838096,-500.0,0.00019173,2]
[347652244,1736023838106,-151.0,0.00019173,2]
[347652245,1736023838115,-420.0,0.00019177,35]
[347652246,1736023838125,-160.0,0.00019177,2]
[347652247,1736023838134,-150.06,0.00019177,2]
[347652248,1736023838144,-271.28475533,0.00019177,2]
[347652249,1736023838153,-151.0,0.00019178,2]
[347652250,1736023838163,-500.0,0.00019178,2]
[347652251,1736023838173,-501.73054357,0.00019178,2]
[347652252,1736023838182,-235.85898653,0.00019178,2]
[347652253,1736023838192,-500.84389074,0.00019178,2]
[347652254,1736023838201,-504.75636727,0.00019178,2]
[347652255,1736023838211,-500.37468758,0.00019178,2]
[347652256,1736023838220,-502.70866287,0.00019178,2]
[347652257,1736023838229,-500.0,0.00019178,2]
[347652258,1736023838238,-500.0,0.00019178,2]
[347652259,1736023838247,-151.0,0.00019178,2]
[347652260,1736023838257,-151.0,0.00019178,2]
[347652261,1736023838266,-500.0,0.00019178,2]
[347652262,1736023838279,-503.7417894,0.00019178,2]
[347652263,1736023838288,-500.0,0.00019178,2]
[347652264,1736023838297,-500.0,0.00019178,2]
[347652265,1736023838306,-500.0,0.00019178,2]
[347652266,1736023838315,-500.0,0.00019178,2]
[347652267,1736023838325,-500.0,0.00019178,2]
[347652268,1736023838334,-500.0,0.00019178,2]
[347652269,1736023838344,-469.06679404,0.00019178,2]
[347652270,1736023838353,-500.0,0.00019178,2]
[347652271,1736023838363,-500.0,0.00019178,2]
[347652272,1736023838372,-500.0,0.00019178,2]
[347652273,1736023838382,-502.31632052,0.00019178,2]
[347652274,1736023838391,-518.251427,0.00019178,2]
[347652275,1736023838400,-500.0,0.00019178,2]
[347652276,1736023838410,-500.0,0.00019178,2]
[347652277,1736023838419,-500.0,0.00019178,2]
[347652278,1736023838429,-500.0,0.00019178,2]
[347652279,1736023838438,-500.0,0.00019178,2]
[347652280,1736023838447,-500.0,0.00019178,2]
[347652281,1736023838457,-500.0,0.00019178,2]
[347652282,1736023838467,-508.4720901,0.00019178,2]
[347652283,1736023838477,-500.0,0.00019178,2]
[347652284,1736023838487,-500.0,0.00019178,2]
[347652285,1736023838497,-500.0,0.00019178,2]
[347652286,1736023838507,-500.0,0.00019178,2]
[347652287,1736023838517,-491.31530678,0.00019178,2]
[347652288,1736023838526,-500.0,0.00019178,2]
[347652289,1736023838535,-500.0,0.00019178,2]
[347652290,1736023838545,-510.30694251,0.00019178,2]
[347652291,1736023838554,-439.03582281,0.00019178,2]
[347652292,1736023838563,-500.0,0.00019178,2]
[347652293,1736023838573,-500.0,0.00019178,2]
[347652294,1736023838582,-500.0,0.00019178,2]
[347652295,1736023838591,-539.41859522,0.00019178,2]
[347652296,1736023838602,-500.0,0.00019178,2]
[347652297,1736023838611,-500.0,0.00019178,2]
[347652298,1736023838620,-500.0,0.00019178,2]
[347652299,1736023838630,-501.20819634,0.00019178,2]
[347652300,1736023838639,-500.0,0.00019178,2]
[347652301,1736023838649,-500.0,0.00019178,2]
[347652302,1736023838658,-500.0,0.00019178,2]
[347652303,1736023838668,-201.58918848,0.00019178,2]
[347652304,1736023838677,-501.49554286,0.00019178,2]
[347652305,1736023838686,-500.0,0.00019178,2]
[347652306,1736023838696,-500.0,0.00019178,2]
[347652307,1736023838706,-500.0,0.00019178,2]
[347652308,1736023838715,-500.0,0.00019178,2]
[347652309,1736023838725,-503.07745818,0.00019178,2]
[347652310,1736023838734,-500.0,0.00019178,2]
[347652311,1736023838743,-522.59708065,0.00019178,2]
[347652312,1736023838753,-500.0,0.00019178,2]
[347652313,1736023838762,-601.15,0.00019178,2]
[347652314,1736023838773,-503.15770444,0.00019178,2]
[347652315,1736023838782,-500.0,0.00019178,2]
[347652316,1736023838792,-500.0,0.00019178,2]
[347652317,1736023838801,-500.0,0.00019178,2]
[347652318,1736023838810,-500.0,0.00019178,2]
[347652319,1736023838820,-501.36039727,0.00019178,2]
[347652320,1736023838829,-500.49884951,0.00019178,2]
[347652321,1736023838839,-500.0,0.00019178,2]
[347652322,1736023838848,-500.0,0.00019178,2]
[347652323,1736023838857,-500.0,0.00019178,2]
[347652324,1736023838866,-500.0,0.00019178,2]
[347652325,1736023838875,-500.0,0.00019178,2]
[347652326,1736023838885,-536.48,0.00019178,2]
[347652327,1736023838894,-500.0,0.00019178,2]
[347652328,1736023838904,-500.0,0.00019178,2]
[347652329,1736023838913,-576.00201627,0.00019178,2]
[347652330,1736023838923,-500.0,0.00019178,2]
[347652331,1736023838932,-576.86,0.00019178,2]
[347652332,1736023838941,-500.0,0.00019178,2]
[347652333,1736023838950,-500.0,0.00019178,2]
[347652334,1736023838960,-500.0,0.00019178,2]
[347652335,1736023838970,-500.50462421,0.00019178,2]
[347652336,1736023838979,-500.0,0.00019178,2]
[347652337,1736023838988,-500.0,0.00019178,2]
[347652338,1736023838999,-500.0,0.00019178,2]
[347652339,1736023839009,-500.0,0.00019178,2]
[347652340,1736023839021,-500.0,0.00019178,2]
[347652341,1736023839030,-500.0,0.00019178,2]
[347652342,1736023839040,-500.0,0.00019178,2]
[347652343,1736023839049,-500.0,0.00019178,2]
[347652344,1736023839058,-555.37764666,0.00019178,2]
[347652345,1736023839068,-500.0,0.00019178,2]
[347652346,1736023839078,-500.0,0.00019178,2]
[347652347,1736023839090,-500.0,0.00019178,2]
[347652348,1736023839099,-500.0,0.00019178,2]
[347652349,1736023839109,-500.0,0.00019178,2]
[347652350,1736023839118,-500.0,0.00019178,2]
[347652351,1736023839128,-500.0,0.00019178,2]
[347652352,1736023839138,-500.0,0.00019178,2]
[347652353,1736023839148,-500.0,0.00019178,2]
[347652354,1736023839157,-500.0,0.00019178,2]
[347652355,1736023839167,-500.0,0.00019178,2]
[347652356,1736023839177,-500.0,0.00019178,2]
[347652357,1736023839186,-500.0,0.00019178,2]
[347652358,1736023839195,-500.0,0.00019178,2]
[347652359,1736023839204,-313.47844996,0.00019178,2]
[347652360,1736023839213,-500.0,0.00019178,2]
[347652361,1736023839222,-500.0,0.00019178,2]
[347652362,1736023839231,-501.66032188,0.00019178,2]
[347652363,1736023839241,-500.0,0.00019178,2]
[347652364,1736023839250,-508.04,0.00019178,2]
[347652365,1736023839260,-500.0,0.00019178,2]
[347652366,1736023839272,-500.0,0.00019178,2]
[347652367,1736023839281,-500.0,0.00019178,2]
[347652368,1736023839290,-500.0,0.00019178,2]
[347652369,1736023839299,-500.0,0.00019178,2]
[347652370,1736023839308,-500.0,0.00019178,2]
[347652371,1736023839317,-500.0,0.00019178,2]
[347652372,1736023839327,-500.0,0.00019178,2]
[347652373,1736023839336,-500.0,0.00019178,2]
[347652374,1736023839345,-614.03611843,0.00019178,2]
[347652375,1736023839354,-500.0,0.00019178,2]
[347652376,1736023839364,-500.0,0.00019178,2]
[347652377,1736023839373,-500.0,0.00019178,2]
[347652378,1736023839382,-500.0,0.00019178,2]
[347652379,1736023839391,-500.0,0.00019178,2]
[347652380,1736023839401,-500.0,0.00019178,2]
[347652381,1736023839410,-500.0,0.00019178,2]
[347652382,1736023839419,-500.0,0.00019178,2]
[347652383,1736023839429,-500.0,0.00019178,2]
[347652384,1736023839438,-500.0,0.00019178,2]
[347652385,1736023839447,-500.0,0.00019178,2]
[347652386,1736023839594,-163.74157313,0.00019178,2]
[347652387,1736023839604,-500.0,0.00019178,2]
[347652388,1736023839613,-498.52440015,0.00019178,2]
[347652389,1736023839622,-500.0,0.00019178,2]
[347652390,1736023839631,-500.0,0.00019178,2]
[347652391,1736023839640,-500.0,0.00019178,2]
[347652392,1736023839649,-500.0,0.00019178,2]
[347652394,1736023839658,-500.0,0.00019178,2]
[347652396,1736023839668,-500.0,0.00019178,2]
[347652398,1736023839677,-500.0,0.00019178,2]
[347652400,1736023839686,-500.30619862,0.00019178,2]
[347652401,1736023839695,-500.0,0.00019178,2]
[347652402,1736023839704,-500.0,0.00019178,2]
[347652403,1736023839713,-500.0,0.00019178,2]
[347652404,1736023839722,-500.0,0.00019178,2]
[347652405,1736023839730,-500.0,0.00019178,2]
[347652406,1736023839739,-501.98974557,0.00019178,2]
[347652407,1736023839748,-1580.71,0.00019178,2]
[347652408,1736023839757,-500.0,0.00019178,2]
[347652409,1736023839767,-500.0,0.00019178,2]
[347652410,1736023839779,-500.0,0.00019178,2]
[347652411,1736023839788,-500.0,0.00019178,2]
[347652412,1736023839798,-500.0,0.00019178,2]
[347652413,1736023839808,-500.0,0.00019178,2]
[347652414,1736023839817,-500.0,0.00019178,2]
[347652415,1736023839826,-500.0,0.00019178,2]
[347652416,1736023839835,-500.0,0.00019178,2]
[347652417,1736023839844,-500.0,0.00019178,2]
[347652418,1736023839853,-500.0,0.00019178,2]
[347652419,1736023839863,-500.0,0.00019178,2]
[347652420,1736023839872,-648.56,0.00019178,2]
[347652421,1736023839881,-505.39193891,0.00019178,2]
[347652422,1736023839890,-500.0,0.00019178,2]
[347652423,1736023839899,-500.0,0.00019178,2]
[347652424,1736023839908,-500.0,0.00019178,2]
[347652425,1736023839918,-500.0,0.00019178,2]
[347652426,1736023839927,-269.63994273,0.00019178,2]
[347652427,1736023839936,-601.75425793,0.00019178,2]
[347652428,1736023839945,-500.0,0.00019178,2]
[347652429,1736023839955,-1222.3,0.00019178,2]
[347652430,1736023839964,-585.19,0.00019178,2]
[347652431,1736023839973,-500.0,0.00019178,2]
[347652432,1736023839982,-500.0,0.00019178,2]
[347652433,1736023839992,-500.0,0.00019178,2]
[347652434,1736023840001,-500.0,0.00019178,2]
[347652435,1736023840011,-739.14,0.00019178,2]
[347652436,1736023840021,-500.0,0.00019178,2]
[347652437,1736023840031,-438.89790896,0.00019178,2]
[347652438,1736023840040,-503.95,0.00019178,2]
[347652439,1736023840049,-500.0,0.00019178,2]
[347652440,1736023840059,-500.0,0.00019178,2]
[347652441,1736023840069,-500.0,0.00019178,2]
[347652442,1736023840078,-1396.31,0.00019178,2]
[347652443,1736023840089,-500.0,0.00019178,2]
[347652444,1736023840099,-710.46,0.00019178,2]
[347652445,1736023840108,-500.0,0.00019178,2]
[347652446,1736023840118,-500.0,0.00019178,2]
[347652447,1736023840128,-500.0,0.00019178,2]
[347652448,1736023840139,-504.8081093,0.00019178,2]
[347652449,1736023840148,-500.0,0.00019178,2]
[347652450,1736023840158,-500.0,0.00019178,2]
[347652451,1736023840168,-500.0,0.00019178,2]
[347652452,1736023840177,-500.0,0.00019178,2]
[347652453,1736023840187,-500.0,0.00019178,2]
[347652454,1736023840196,-500.0,0.00019178,2]
[347652455,1736023840205,-500.0,0.00019178,2]
[347652456,1736023840214,-507.94198458,0.00019178,2]
[347652457,1736023840223,-246.01855221,0.00019178,2]
[347652458,1736023840233,-500.0,0.00019178,2]
[347652459,1736023840242,-500.0,0.00019178,2]
[347652460,1736023840251,-500.0,0.00019178,2]
[347652461,1736023840261,-500.0,0.00019178,2]
[347652462,1736023840272,-500.0,0.00019178,2]
[347652463,1736023840282,-500.0,0.00019178,2]
[347652464,1736023840291,-500.0,0.00019178,2]
[347652465,1736023840301,-500.0,0.00019178,2]
[347652466,1736023840310,-500.0,0.00019178,2]
[347652467,1736023840320,-615.23,0.00019178,2]
[347652468,1736023840330,-500.0,0.00019178,2]
[347652469,1736023840339,-500.0,0.00019178,2]
[347652470,1736023840349,-500.0,0.00019178,2]
[347652471,1736023840358,-808.12,0.00019178,2]
[347652472,1736023840367,-500.0,0.00019178,2]
[347652473,1736023840376,-500.0,0.00019178,2]
[347652474,1736023840386,-500.0,0.00019178,2]
[347652475,1736023840395,-500.0,0.00019178,2]
[347652476,1736023840404,-500.0,0.00019178,2]